[Event "44th Chess Olympiad Women 2022"]
[Site "Chennai"]
[Date "2022.08.05"]
[Round "7.50"]
[White "Munoz Henriquez, Alba Esther"]
[Black "Prasad, Tanvi"]
[Result "1-0"]
[WhiteElo "1588"]
[BlackElo "1165"]
[Annotator "NA"]
[PlyCount "113"]
[EventDate "2022.??.??"]
[TimeControl "60"]

1. e4 {[%emt 0:00:03]} e5 {[%emt 0:00:07]} 2. Nf3 {[%emt 0:00:07]} Nf6 {
[%emt 0:00:22]} 3. Nc3 {[%emt 0:00:17]} Nc6 {[%emt 0:00:06]} 4. Bb5 {[%emt 0:
00:00]} d6 {[%emt 0:00:29]} 5. d4 {[%emt 0:00:34]} Bd7 {[%emt 0:01:43]} 6. O-O
{[%emt 0:02:01]} h6 {[%emt 0:01:49]} 7. Re1 {[%emt 0:00:26]} a6 {[%emt 0:01:50]
} 8. Bxc6 {[%emt 0:02:33]} Bxc6 {[%emt 0:02:09]} 9. dxe5 {[%emt 0:02:40]} dxe5
{[%emt 0:00:47]} 10. Qxd8+ {[%emt 0:02:14]} Rxd8 {[%emt 0:00:19]} 11. Nxe5 {
[%emt 0:00:17]} Bb4 {[%emt 0:09:31]} 12. Nxc6 {[%emt 0:09:43]} bxc6 {[%emt 0:
00:00]} 13. Bf4 {[%emt 0:00:37]} Rd7 {[%emt 0:03:02]} 14. Be5 {[%emt 0:02:20]}
Nh5 {[%emt 0:02:53]} 15. a3 {[%emt 0:01:38]} Ba5 {[%emt 0:02:11]} 16. h3 {
[%emt 0:02:17]} O-O {[%emt 0:00:57]} 17. b4 {[%emt 0:06:49]} Re8 {[%emt 0:00:
00]} 18. Bh2 {[%emt 0:08:49]} Bb6 {[%emt 0:00:36]} 19. Rad1 {[%emt 0:01:44]}
Rde7 {[%emt 0:02:35]} 20. Kf1 {[%emt 0:00:29]} Nf6 {[%emt 0:03:47]} 21. f3 {
[%emt 0:00:15]} Nd7 {[%emt 0:04:32]} 22. Na4 {[%emt 0:11:44]} Ne5 {[%emt 0:00:
00]} 23. Bxe5 {[%emt 0:02:04]} Rxe5 {[%emt 0:00:40]} 24. Rd7 {[%emt 0:04:15]}
R5e7 {[%emt 0:03:50]} 25. Red1 {[%emt 0:00:36]} Ba7 {[%emt 0:02:30]} 26. Nb2 {
[%emt 0:02:09]} Be3 {[%emt 0:06:20]} 27. Nc4 {[%emt 0:00:58]} Ba7 {[%emt 0:00:
00]} 28. Rxe7 {[%emt 0:04:05]} Rxe7 {[%emt 0:01:50]} 29. Rd8+ {[%emt 0:00:15]}
Kh7 {[%emt 0:00:50]} 30. Ra8 {[%emt 0:00:06]} Bd4 {[%emt 0:01:23]} 31. Rxa6 {
[%emt 0:00:23]} c5 {[%emt 0:02:35]} 32. b5 {[%emt 0:01:13]} Re8 {[%emt 0:04:35]
} 33. a4 {[%emt 0:02:11]} Rb8 {[%emt 0:03:14]} 34. Rc6 {[%emt 0:00:55]} Rb7 {
[%emt 0:02:55]} 35. Na5 {[%emt 0:00:45]} Rb8 {[%emt 0:02:51]} 36. Rxc7 {
[%emt 0:05:03]} Bc3 {[%emt 0:02:58]} 37. Nc6 {[%emt 0:01:09]} Rb6 {[%emt 0:00:
00]} 38. Rxf7 {[%emt 0:00:46]} Bd2 {[%emt 0:03:09]} 39. Rd7 {[%emt 0:00:53]}
Bb4 {[%emt 0:01:34]} 40. c4 {[%emt 0:00:28]} Bc3 {[%emt 0:01:47]} 41. a5 {
[%emt 0:31:27]} Bxa5 {[%emt 0:30:20]} 42. Nxa5 {[%emt 0:00:10]} Rb8 {[%emt 0:
00:00]} 43. Rc7 {[%emt 0:01:27]} Ra8 {[%emt 0:01:10]} 44. Nb7 {[%emt 0:01:07]}
Ra4 {[%emt 0:00:16]} 45. Rxc5 {[%emt 0:00:22]} Rb4 {[%emt 0:00:14]} 46. Nd6 {
[%emt 0:00:40]} Rb2 {[%emt 0:01:02]} 47. e5 {[%emt 0:00:13]} Kg6 {[%emt 0:00:
00]} 48. f4 {[%emt 0:01:26]} Rb3 {[%emt 0:02:08]} 49. f5+ {[%emt 0:00:16]} Kg5
{[%emt 0:00:27]} 50. Rc7 {[%emt 0:00:53]} Kf4 {[%emt 0:00:55]} 51. Rxg7 {
[%emt 0:03:21]} Kxe5 {[%emt 0:00:24]} 52. Rg6 {[%emt 0:00:47]} Rb2 {[%emt 0:00:
00]} 53. Re6+ {[%emt 0:00:27]} Kd4 {[%emt 0:01:51]} 54. f6 {[%emt 0:00:10]} Ra2
{[%emt 0:00:39]} 55. f7 {[%emt 0:00:07]} Ra8 {[%emt 0:00:22]} 56. Re8 {[%emt 0:
00:00]} Rxe8 {[%emt 0:00:12]} 57. fxe8=Q {[%emt 0:00:14]} 1-0

[Event "44th Chess Olympiad Women 2022"]
[Site "Chennai"]
[Date "2022.08.05"]
[Round "7.50"]
[White "Rondon Chacon, Yolys Desiree"]
[Black "Sewak, Aarti"]
[Result "1-0"]
[WhiteElo "1688"]
[BlackElo "1412"]
[Annotator "NA"]
[PlyCount "64"]
[EventDate "2022.??.??"]
[TimeControl "60"]

1. d4 {[%emt 0:00:01]} Nf6 {[%emt 0:00:10]} 2. Nf3 {[%emt 0:00:10]} e6 {
[%emt 0:01:00]} 3. g3 {[%emt 0:00:31]} d5 {[%emt 0:00:16]} 4. Bg2 {[%emt 0:00:
00]} Nc6 {[%emt 0:00:09]} 5. O-O {[%emt 0:00:53]} Bd6 {[%emt 0:00:47]} 6. c4 {
[%emt 0:01:32]} b6 {[%emt 0:00:57]} 7. Nc3 {[%emt 0:02:32]} dxc4 {[%emt 0:00:
00]} 8. Ne5 {[%emt 0:03:44]} Nxe5 {[%emt 0:14:54]} 9. dxe5 {[%emt 0:04:07]} Nd5
{[%emt 0:03:53]} 10. exd6 {[%emt 0:01:10]} c6 {[%emt 0:01:17]} 11. e4 {[%emt 0:
00:00]} Nb4 {[%emt 0:08:00]} 12. e5 {[%emt 0:03:04]} Bd7 {[%emt 0:02:59]} 13.
Qg4 {[%emt 0:05:57]} Kf8 {[%emt 0:06:35]} 14. Bg5 {[%emt 0:04:41]} Qe8 {
[%emt 0:05:54]} 15. Be7+ {[%emt 0:05:22]} Kg8 {[%emt 0:00:20]} 16. h4 {[%emt 0:
00:00]} h5 {[%emt 0:03:22]} 17. Qxc4 {[%emt 0:03:10]} Nd5 {[%emt 0:03:03]} 18.
Nxd5 {[%emt 0:05:14]} cxd5 {[%emt 0:00:41]} 19. Qd4 {[%emt 0:03:13]} Rh6 {
[%emt 0:04:05]} 20. Rfc1 {[%emt 0:02:00]} Rc8 {[%emt 0:02:04]} 21. Rc3 {
[%emt 0:02:40]} Rxc3 {[%emt 0:02:29]} 22. Qxc3 {[%emt 0:00:10]} a6 {[%emt 0:00:
00]} 23. Rc1 {[%emt 0:01:09]} Rh8 {[%emt 0:04:15]} 24. Qd4 {[%emt 0:03:25]} Kh7
{[%emt 0:02:23]} 25. Qxb6 {[%emt 0:02:04]} Qa8 {[%emt 0:02:21]} 26. Rc7 {
[%emt 0:04:21]} Bb5 {[%emt 0:03:32]} 27. d7 {[%emt 0:04:37]} Bxd7 {[%emt 0:00:
00]} 28. Rxd7 {[%emt 0:00:48]} Qc8 {[%emt 0:00:20]} 29. Qc7 {[%emt 0:01:09]}
Qxc7 {[%emt 0:03:53]} 30. Rxc7 {[%emt 0:00:04]} Rb8 {[%emt 0:00:54]} 31. b3 {
[%emt 0:01:24]} Rb5 {[%emt 0:00:59]} 32. Bf1 {[%emt 0:00:31]} Ra5 {[%emt 0:00:
00]} 1-0

[Event "44th Chess Olympiad Women 2022"]
[Site "Chennai"]
[Date "2022.08.05"]
[Round "7.50"]
[White "Terubea, Cydel"]
[Black "Castillo Beitia, Ashley Alexandra"]
[Result "0-1"]
[WhiteElo "1450"]
[BlackElo "1587"]
[Annotator "NA RC"]
[PlyCount "130"]
[EventDate "2022.??.??"]
[TimeControl "60"]

1. e4 {[%emt 0:00:07]} c5 {[%emt 0:00:23]} 2. Nf3 {[%emt 0:00:06]} d6 {[%emt 0:
00:00]} 3. d4 {[%emt 0:00:12]} cxd4 {[%emt 0:00:09]} 4. Nxd4 {[%emt 0:00:16]}
Nf6 {[%emt 0:00:10]} 5. Nc3 {[%emt 0:00:37]} g6 {[%emt 0:00:07]} 6. h3 {
[%emt 0:04:28]} Bg7 {[%emt 0:02:19]} 7. Nf3 {[%emt 0:01:54]} O-O {[%emt 0:00:
00]} 8. Bd3 {[%emt 0:00:06]} Nc6 {[%emt 0:01:34]} 9. a3 {[%emt 0:01:12]} b6 {
[%emt 0:01:41]} 10. O-O {[%emt 0:01:21]} Bb7 {[%emt 0:01:53]} 11. Rb1 {[%emt 0:
00:00]} Rc8 {[%emt 0:01:31]} 12. Bd2 {[%emt 0:03:21]} d5 {[%emt 0:04:58]} 13.
exd5 {[%emt 0:03:00]} Nxd5 {[%emt 0:00:09]} 14. Nxd5 {[%emt 0:01:55]} Qxd5 {
[%emt 0:00:10]} 15. Re1 {[%emt 0:00:18]} Rfd8 {[%emt 0:04:14]} 16. Qc1 {
[%emt 0:01:50]} Nd4 {[%emt 0:03:52]} 17. Be4 {[%emt 0:03:59]} Nxf3+ {[%emt 0:
00:00]} 18. Bxf3 {[%emt 0:00:26]} Qxd2 {[%emt 0:00:43]} 19. Qxd2 {[%emt 0:00:
00]} Rxd2 {[%emt 0:00:08]} 20. Bxb7 {[%emt 0:00:05]} Rcxc2 {[%emt 0:00:33]} 21.
Rxe7 {[%emt 0:00:38]} Bd4 {[%emt 0:11:57]} 22. Kh1 {[%emt 0:01:32]} Rxb2 {
[%emt 0:04:01]} 23. Rc1 {[%emt 0:01:56]} Rbc2 {[%emt 0:10:25]} 24. Rxc2 {
[%emt 0:11:07]} Rxc2 {[%emt 0:00:10]} 25. Bd5 {[%emt 0:01:21]} Rxf2 {[%emt 0:
00:00]} 26. Bc4 {[%emt 0:04:29]} a5 {[%emt 0:03:26]} 27. a4 {[%emt 0:03:04]}
Bc5 {[%emt 0:01:29]} 28. Rd7 {[%emt 0:01:51]} Rf4 {[%emt 0:05:07]} 29. Bb5 {
[%emt 0:00:41]} Kg7 {[%emt 0:06:03]} 30. Rd1 {[%emt 0:05:14]} h5 {[%emt 0:00:
00]} 31. Kh2 {[%emt 0:01:41]} h4 {[%emt 0:03:13]} 32. g4 {[%emt 0:03:43]} Rf2+
{[%emt 0:09:52]} 33. Kh1 {[%emt 0:00:12]} f5 {[%emt 0:00:49]} 34. gxf5 {
[%emt 0:05:02]} gxf5 {[%emt 0:00:55]} 35. Rf1 {[%emt 0:02:11]} Rb2 {[%emt 0:00:
00]} 36. Rxf5 {[%emt 0:01:03]} Rb3 {[%emt 0:02:08]} 37. Kg2 {[%emt 0:00:13]}
Rg3+ {[%emt 0:00:24]} 38. Kh1 {[%emt 0:04:45]} Rxh3+ {[%emt 0:02:21]} 39. Kg2 {
[%emt 0:00:11]} Rg3+ {[%emt 0:00:19]} 40. Kh1 {[%emt 0:00:24]} Kg6 {[%emt 0:00:
00]} 41. Rd5 {[%emt 0:32:39]} Kf6 {[%emt 0:32:11]} 42. Rh5 {[%emt 0:00:57]} Rg4
{[%emt 0:01:06]} 43. Kh2 {[%emt 0:02:16]} Rb4 {[%emt 0:03:53]} 44. Kh3 {
[%emt 0:02:32]} Bf2 {[%emt 0:02:52]} 45. Kg2 {[%emt 0:01:50]} Rb2 {[%emt 0:00:
00]} 46. Kh3 {[%emt 0:00:46]} Ke6 {[%emt 0:00:00]} 47. Kg4 {[%emt 0:00:00]}
Rb4+ {[%emt 0:00:00]} 48. Kf3 {[%emt 0:00:00]} Bc5 {[%emt 0:00:00]} 49. Kg2 {
[%emt 0:00:00]} Be7 {[%emt 0:00:00]} 50. Kh3 {[%emt 0:00:00]} Bf6 {[%emt 0:00:
00]} 51. Kg2 {[%emt 0:00:00]} Kd6 {[%emt 0:00:00]} 52. Kf3 {[%emt 0:00:00]} Be5
{[%emt 0:00:00]} 53. Rh6+ {[%emt 0:00:00]} Kc5 {[%emt 0:00:00]} 54. Rc6+ {
[%emt 0:00:00]} Kd5 {[%emt 0:00:00]} 55. Rxb6 {[%emt 0:00:00]} h3 {[%emt 0:00:
00]} 56. Ra6 {[%emt 0:00:00]} h2 {[%emt 0:00:00]} 57. Rh6 {[%emt 0:00:00]} Rb1
{[%emt 0:00:00]} 58. Ke3 {[%emt 0:00:00]} Kc5 {[%emt 0:00:00]} 59. Rc6+ {
[%emt 0:02:14]} Kb4 {[%emt 0:00:00]} 60. Rc4+ {[%emt 0:01:12]} Ka3 {[%emt 0:00:
00]} 61. Bc6 {[%emt 0:01:38]} h1=Q {[%emt 0:00:49]} 62. Bxh1 {[%emt 0:00:09]}
Rxh1 {[%emt 0:00:04]} 63. Kd3 {[%emt 0:00:59]} Kb3 {[%emt 0:01:13]} 64. Rc5 {
[%emt 0:01:20]} Rh3+ {[%emt 0:00:13]} 65. Kd2 {[%emt 0:00:44]} Bc3+ {[%emt 0:
00:00]} 0-1

[Event "44th Chess Olympiad Women 2022"]
[Site "Chennai"]
[Date "2022.08.05"]
[Round "7.51"]
[White "Abera, Mekdes Demssie"]
[Black "Misawa, Yuki"]
[Result "0-1"]
[WhiteElo "1342"]
[BlackElo "1587"]
[Annotator "NA RC"]
[PlyCount "80"]
[EventDate "2022.??.??"]
[TimeControl "60"]

1. d4 {[%emt 0:00:03]} d5 {[%emt 0:00:06]} 2. e3 {[%emt 0:00:06]} Nf6 {[%emt 0:
00:00]} 3. Nf3 {[%emt 0:00:05]} Bf5 {[%emt 0:00:09]} 4. Nc3 {[%emt 0:00:19]} e6
{[%emt 0:00:27]} 5. Be2 {[%emt 0:00:14]} c6 {[%emt 0:00:30]} 6. O-O {[%emt 0:
00:00]} Bd6 {[%emt 0:00:36]} 7. h3 {[%emt 0:00:33]} Nbd7 {[%emt 0:00:49]} 8.
Bd3 {[%emt 0:00:32]} Ne4 {[%emt 0:04:24]} 9. Bxe4 {[%emt 0:02:13]} dxe4 {
[%emt 0:04:51]} 10. Nh2 {[%emt 0:03:00]} Qh4 {[%emt 0:08:47]} 11. f4 {[%emt 0:
00:00]} exf3 {[%emt 0:09:01]} 12. Qxf3 {[%emt 0:01:55]} Nf6 {[%emt 0:03:52]}
13. Qf2 {[%emt 0:09:20]} Bxh2+ {[%emt 0:06:54]} 14. Kh1 {[%emt 0:01:43]} Bg3 {
[%emt 0:05:39]} 15. Qe2 {[%emt 0:05:08]} Ne4 {[%emt 0:10:12]} 16. Bd2 {[%emt 0:
00:00]} Bc7 {[%emt 0:04:33]} 17. Be1 {[%emt 0:01:58]} Ng3+ {[%emt 0:01:39]} 18.
Bxg3 {[%emt 0:00:26]} Qxg3 {[%emt 0:00:12]} 19. Kg1 {[%emt 0:02:44]} Bxh3 {
[%emt 0:04:42]} 20. Qf3 {[%emt 0:00:53]} Qxf3 {[%emt 0:01:55]} 21. Rxf3 {
[%emt 0:00:08]} Bf5 {[%emt 0:00:24]} 22. e4 {[%emt 0:00:32]} Bg6 {[%emt 0:00:
00]} 23. Re1 {[%emt 0:00:31]} O-O-O {[%emt 0:01:11]} 24. Rd3 {[%emt 0:01:12]}
Ba5 {[%emt 0:00:47]} 25. Kf2 {[%emt 0:01:04]} Rd7 {[%emt 0:01:56]} 26. g4 {
[%emt 0:00:50]} Rhd8 {[%emt 0:01:04]} 27. Ke3 {[%emt 0:00:44]} Bb6 {[%emt 0:00:
00]} 28. Ne2 {[%emt 0:02:23]} e5 {[%emt 0:00:39]} 29. c3 {[%emt 0:00:12]} exd4+
{[%emt 0:00:33]} 30. cxd4 {[%emt 0:00:17]} Re8 {[%emt 0:00:54]} 31. Ng3 {
[%emt 0:01:23]} Rde7 {[%emt 0:01:14]} 32. Kf4 {[%emt 0:00:47]} Bc7+ {[%emt 0:
00:00]} 33. Kg5 {[%emt 0:05:21]} Bxg3 {[%emt 0:00:45]} 34. Rxg3 {[%emt 0:00:08]
} Rxe4 {[%emt 0:00:25]} 35. Rd1 {[%emt 0:00:06]} h6+ {[%emt 0:01:35]} 36. Kh4 {
[%emt 0:00:19]} Re2 {[%emt 0:00:22]} 37. Rb3 {[%emt 0:00:56]} Bc2 {[%emt 0:00:
00]} 38. Rdd3 {[%emt 0:00:24]} Bxd3 {[%emt 0:00:27]} 39. Rxd3 {[%emt 0:00:05]}
R8e3 {[%emt 0:00:17]} 40. Rd1 {[%emt 0:02:44]} Rh2# {[%emt 0:00:23]} 0-1

[Event "44th Chess Olympiad Women 2022"]
[Site "Chennai"]
[Date "2022.08.05"]
[Round "7.51"]
[White "Haile, Lidet Abate"]
[Black "Sakai, Azumi"]
[Result "1-0"]
[WhiteElo "1624"]
[BlackElo "1759"]
[Annotator "NA RC"]
[PlyCount "109"]
[EventDate "2022.??.??"]
[TimeControl "60"]

1. e4 {[%emt 0:00:06]} e6 {[%emt 0:00:15]} 2. d4 {[%emt 0:00:10]} d5 {[%emt 0:
00:00]} 3. exd5 {[%emt 0:00:14]} exd5 {[%emt 0:00:05]} 4. Nf3 {[%emt 0:00:15]}
Bg4 {[%emt 0:00:13]} 5. Bd3 {[%emt 0:00:46]} Bd6 {[%emt 0:00:18]} 6. O-O {
[%emt 0:00:10]} Ne7 {[%emt 0:00:20]} 7. Re1 {[%emt 0:00:30]} Nbc6 {[%emt 0:00:
00]} 8. c3 {[%emt 0:00:12]} Qd7 {[%emt 0:00:34]} 9. Nbd2 {[%emt 0:05:02]} O-O-O
{[%emt 0:01:14]} 10. b4 {[%emt 0:00:34]} Rde8 {[%emt 0:00:55]} 11. a4 {[%emt 0:
00:00]} f6 {[%emt 0:02:34]} 12. a5 {[%emt 0:01:27]} g5 {[%emt 0:02:16]} 13. Qb3
{[%emt 0:03:30]} Ng6 {[%emt 0:06:23]} 14. Rxe8+ {[%emt 0:01:34]} Rxe8 {[%emt 0:
00:00]} 15. b5 {[%emt 0:03:06]} Nb8 {[%emt 0:06:26]} 16. Ba3 {[%emt 0:02:13]}
Nf4 {[%emt 0:03:58]} 17. Bxd6 {[%emt 0:03:28]} Qxd6 {[%emt 0:04:15]} 18. Bf1 {
[%emt 0:06:45]} h5 {[%emt 0:04:13]} 19. Rb1 {[%emt 0:08:16]} Bf5 {[%emt 0:00:
00]} 20. Rc1 {[%emt 0:07:08]} g4 {[%emt 0:05:00]} 21. Nh4 {[%emt 0:04:42]} Bh7
{[%emt 0:00:30]} 22. c4 {[%emt 0:20:47]} Ne2+ {[%emt 0:02:32]} 23. Bxe2 {
[%emt 0:02:14]} Rxe2 {[%emt 0:00:18]} 24. Qd1 {[%emt 0:02:04]} Bd3 {[%emt 0:00:
00]} 25. g3 {[%emt 0:02:28]} dxc4 {[%emt 0:04:01]} 26. Nxc4 {[%emt 0:04:37]}
Qxd4 {[%emt 0:00:59]} 27. Ne3 {[%emt 0:04:49]} Rxe3 {[%emt 0:15:21]} 28. fxe3 {
[%emt 0:01:18]} Qxe3+ {[%emt 0:00:08]} 29. Kh1 {[%emt 0:00:33]} Bxb5 {[%emt 0:
00:00]} 30. Ng2 {[%emt 0:03:19]} Qe4 {[%emt 0:02:43]} 31. Qd2 {[%emt 0:01:12]}
Bc6 {[%emt 0:03:39]} 32. Re1 {[%emt 0:05:18]} Qf5 {[%emt 0:05:00]} 33. Qe3 {
[%emt 0:02:33]} Qd5 {[%emt 0:13:43]} 34. Qe6+ {[%emt 0:02:03]} Qxe6 {[%emt 0:
00:00]} 35. Rxe6 {[%emt 0:00:02]} Kd7 {[%emt 0:00:30]} 36. Rxf6 {[%emt 0:00:13]
} Ke7 {[%emt 0:00:37]} 37. Rh6 {[%emt 0:00:08]} Be8 {[%emt 0:00:38]} 38. Nf4 {
[%emt 0:00:59]} c5 {[%emt 0:01:13]} 39. Kg1 {[%emt 0:03:50]} Nc6 {[%emt 0:00:
00]} 40. a6 {[%emt 0:00:14]} b5 {[%emt 0:00:52]} 41. Nd5+ {[%emt 0:30:20]} Kf7
{[%emt 0:04:46]} 42. Nc7 {[%emt 0:00:00]} Nd4 {[%emt 0:04:35]} 43. Nxe8 {
[%emt 0:00:00]} Kxe8 {[%emt 0:00:25]} 44. Rxh5 {[%emt 0:00:00]} c4 {[%emt 0:00:
00]} 45. Re5+ {[%emt 0:00:00]} Kf7 {[%emt 0:00:47]} 46. Kf2 {[%emt 0:00:00]} c3
{[%emt 0:03:48]} 47. Ke3 {[%emt 0:00:00]} c2 {[%emt 0:04:58]} 48. Rc5 {[%emt 0:
00:00]} Ne6 {[%emt 0:03:08]} 49. Rxc2 {[%emt 0:00:00]} Kf6 {[%emt 0:01:12]} 50.
Ke4 {[%emt 0:00:00]} b4 {[%emt 0:00:34]} 51. Kd5 {[%emt 0:00:00]} b3 {[%emt 0:
00:00]} 52. Rf2+ {[%emt 0:00:00]} Ke7 {[%emt 0:02:59]} 53. Re2 {[%emt 0:00:00]}
Kd7 {[%emt 0:01:21]} 54. Rxe6 {[%emt 0:00:00]} b2 {[%emt 0:00:12]} 55. Re1 {
[%emt 0:00:00]} 1-0

[Event "44th Chess Olympiad Women 2022"]
[Site "Chennai"]
[Date "2022.08.05"]
[Round "7.51"]
[White "Kojima, Natsumi"]
[Black "Bantiwalu, Aster Melake"]
[Result "0-1"]
[WhiteElo "1782"]
[BlackElo "1425"]
[Annotator "NA"]
[PlyCount "112"]
[EventDate "2022.??.??"]
[TimeControl "60"]

1. e4 {[%emt 0:00:03]} e5 {[%emt 0:00:13]} 2. Nf3 {[%emt 0:00:31]} Nc6 {
[%emt 0:00:18]} 3. d4 {[%emt 0:00:06]} exd4 {[%emt 0:00:52]} 4. Nxd4 {[%emt 0:
00:00]} Bc5 {[%emt 0:00:46]} 5. Nb3 {[%emt 0:00:08]} Bb6 {[%emt 0:00:48]} 6.
Nc3 {[%emt 0:00:07]} d6 {[%emt 0:01:35]} 7. Qe2 {[%emt 0:00:15]} h6 {[%emt 0:
00:00]} 8. Be3 {[%emt 0:00:55]} Bxe3 {[%emt 0:01:20]} 9. Qxe3 {[%emt 0:00:04]}
Nf6 {[%emt 0:00:33]} 10. O-O-O {[%emt 0:00:39]} Bd7 {[%emt 0:04:07]} 11. f3 {
[%emt 0:01:18]} a6 {[%emt 0:01:28]} 12. g4 {[%emt 0:03:36]} Qe7 {[%emt 0:01:55]
} 13. h4 {[%emt 0:01:41]} O-O-O {[%emt 0:00:38]} 14. Be2 {[%emt 0:06:04]} Kb8 {
[%emt 0:01:54]} 15. Nd4 {[%emt 0:08:42]} Ne5 {[%emt 0:04:11]} 16. Nd5 {[%emt 0:
00:00]} Nxd5 {[%emt 0:00:13]} 17. exd5 {[%emt 0:00:12]} Rhe8 {[%emt 0:00:48]}
18. Qb3 {[%emt 0:02:18]} Ka7 {[%emt 0:02:31]} 19. h5 {[%emt 0:09:24]} Qf6 {
[%emt 0:05:36]} 20. Kb1 {[%emt 0:03:43]} Bc8 {[%emt 0:01:22]} 21. Rhf1 {
[%emt 0:19:34]} Nd7 {[%emt 0:01:32]} 22. Bxa6 {[%emt 0:03:19]} Nc5 {[%emt 0:00:
00]} 23. Qc4 {[%emt 0:08:51]} Nxa6 {[%emt 0:00:56]} 24. Rd3 {[%emt 0:00:29]}
Rd7 {[%emt 0:02:14]} 25. Ra3 {[%emt 0:02:23]} Rde7 {[%emt 0:01:27]} 26. Rxa6+ {
[%emt 0:07:27]} bxa6 {[%emt 0:01:39]} 27. Nc6+ {[%emt 0:01:29]} Ka8 {[%emt 0:
00:00]} 28. Qb4 {[%emt 0:07:19]} Bb7 {[%emt 0:02:03]} 29. Nxe7 {[%emt 0:00:42]}
Qxe7 {[%emt 0:00:29]} 30. Qa5 {[%emt 0:01:31]} Kb8 {[%emt 0:00:58]} 31. a3 {
[%emt 0:00:16]} Qe2 {[%emt 0:00:32]} 32. Rc1 {[%emt 0:00:42]} Qxf3 {[%emt 0:00:
00]} 33. c4 {[%emt 0:02:17]} Qxg4 {[%emt 0:00:40]} 34. c5 {[%emt 0:00:33]} dxc5
{[%emt 0:00:56]} 35. Qxc5 {[%emt 0:00:37]} Qd7 {[%emt 0:01:11]} 36. Rd1 {
[%emt 0:01:10]} Rd8 {[%emt 0:00:35]} 37. d6 {[%emt 0:03:04]} cxd6 {[%emt 0:00:
00]} 38. Qd4 {[%emt 0:00:18]} f6 {[%emt 0:00:39]} 39. Ka1 {[%emt 0:00:47]} Qc7
{[%emt 0:02:10]} 40. Rd3 {[%emt 0:00:27]} Qe7 {[%emt 0:00:37]} 41. Rb3 {
[%emt 0:31:10]} Rc8 {[%emt 0:31:48]} 42. Qb6 {[%emt 0:00:00]} Ka8 {[%emt 0:00:
00]} 43. Qb4 {[%emt 0:00:00]} Bd5 {[%emt 0:00:00]} 44. Qb6 {[%emt 0:00:00]}
Rc1+ {[%emt 0:00:00]} 45. Ka2 {[%emt 0:00:00]} Bxb3+ {[%emt 0:00:00]} 46. Qxb3
{[%emt 0:00:00]} Rc8 {[%emt 0:00:00]} 47. Qb6 {[%emt 0:00:00]} Qe6+ {[%emt 0:
00:00]} 48. Kb1 {[%emt 0:00:00]} Qe4+ {[%emt 0:00:00]} 49. Ka2 {[%emt 0:00:00]}
Qc6 {[%emt 0:00:00]} 50. Qe3 {[%emt 0:00:00]} Re8 {[%emt 0:00:00]} 51. Qd3 {
[%emt 0:00:00]} d5 {[%emt 0:00:00]} 52. Qd2 {[%emt 0:00:00]} Qc4+ {[%emt 0:00:
00]} 53. Kb1 {[%emt 0:00:00]} Re2 {[%emt 0:00:00]} 54. Qd1 {[%emt 0:00:00]}
Qe4+ {[%emt 0:00:00]} 55. Ka2 {[%emt 0:00:00]} Re1 {[%emt 0:00:00]} 56. Qc2 {
[%emt 0:00:00]} Qxc2 {[%emt 0:00:00]} 0-1

[Event "44th Chess Olympiad Women 2022"]
[Site "Chennai"]
[Date "2022.08.05"]
[Round "7.51"]
[White "Mitsuyama, Rikka"]
[Black "Ayele, Hana Mulugeta"]
[Result "1-0"]
[WhiteElo "1157"]
[BlackElo "1437"]
[Annotator "NA RC"]
[PlyCount "93"]
[EventDate "2022.??.??"]
[TimeControl "60"]

1. d4 {[%emt 0:00:11]} d5 {[%emt 0:00:07]} 2. c4 {[%emt 0:00:07]} e6 {[%emt 0:
00:00]} 3. Nc3 {[%emt 0:00:06]} Nf6 {[%emt 0:00:32]} 4. Bg5 {[%emt 0:00:06]}
Be7 {[%emt 0:01:11]} 5. Nf3 {[%emt 0:00:32]} h6 {[%emt 0:01:20]} 6. Bh4 {
[%emt 0:00:15]} Nc6 {[%emt 0:01:33]} 7. e3 {[%emt 0:01:09]} a6 {[%emt 0:01:30]}
8. Bd3 {[%emt 0:02:18]} dxc4 {[%emt 0:00:55]} 9. Bxc4 {[%emt 0:00:18]} b5 {
[%emt 0:00:28]} 10. Bd3 {[%emt 0:01:45]} O-O {[%emt 0:00:36]} 11. O-O {[%emt 0:
00:00]} Bb7 {[%emt 0:01:52]} 12. Rc1 {[%emt 0:03:55]} Rc8 {[%emt 0:02:12]} 13.
Qe2 {[%emt 0:05:27]} Re8 {[%emt 0:07:09]} 14. a4 {[%emt 0:03:32]} bxa4 {
[%emt 0:06:15]} 15. Bxa6 {[%emt 0:05:13]} Bxa6 {[%emt 0:07:19]} 16. Qxa6 {
[%emt 0:01:01]} Nb4 {[%emt 0:03:25]} 17. Qxa4 {[%emt 0:01:45]} Rb8 {[%emt 0:00:
00]} 18. Rfd1 {[%emt 0:06:46]} Nfd5 {[%emt 0:04:15]} 19. Bg3 {[%emt 0:10:28]}
Nb6 {[%emt 0:06:28]} 20. Qb3 {[%emt 0:04:52]} Rb7 {[%emt 0:03:55]} 21. Na2 {
[%emt 0:11:13]} Nxa2 {[%emt 0:04:53]} 22. Qxa2 {[%emt 0:00:16]} Bd6 {[%emt 0:
00:00]} 23. Ne5 {[%emt 0:03:37]} Bxe5 {[%emt 0:04:30]} 24. Bxe5 {[%emt 0:00:33]
} Qd7 {[%emt 0:01:58]} 25. Qa5 {[%emt 0:04:31]} Ra8 {[%emt 0:05:01]} 26. Qb4 {
[%emt 0:02:21]} Rab8 {[%emt 0:01:40]} 27. Qa5 {[%emt 0:06:23]} Ra8 {[%emt 0:00:
00]} 28. Qc5 {[%emt 0:03:29]} Na4 {[%emt 0:01:42]} 29. Qa3 {[%emt 0:01:17]}
Raa7 {[%emt 0:01:28]} 30. Rd2 {[%emt 0:03:04]} Nxb2 {[%emt 0:03:53]} 31. Qc3 {
[%emt 0:01:02]} Na4 {[%emt 0:01:28]} 32. Qc4 {[%emt 0:00:50]} Nb6 {[%emt 0:00:
00]} 33. Qe2 {[%emt 0:00:43]} Nd5 {[%emt 0:02:46]} 34. Qg4 {[%emt 0:01:53]} f6
{[%emt 0:01:04]} 35. Bg3 {[%emt 0:00:20]} Nb4 {[%emt 0:02:14]} 36. h3 {[%emt 0:
00:00]} Nd5 {[%emt 0:01:32]} 37. Rdc2 {[%emt 0:00:54]} Nb4 {[%emt 0:02:07]} 38.
Rc4 {[%emt 0:01:17]} Nd5 {[%emt 0:00:54]} 39. Rc6 {[%emt 0:01:50]} f5 {[%emt 0:
00:00]} 40. Qg6 {[%emt 0:01:33]} Rb6 {[%emt 0:01:44]} 41. Be5 {[%emt 0:34:27]}
Rxc6 {[%emt 0:32:30]} 42. Rxc6 {[%emt 0:00:14]} Ra1+ {[%emt 0:03:07]} 43. Kh2 {
[%emt 0:00:13]} Ra2 {[%emt 0:00:40]} 44. Rxe6 {[%emt 0:01:17]} Ra8 {[%emt 0:00:
00]} 45. Qxf5 {[%emt 0:00:00]} Rf8 {[%emt 0:00:00]} 46. Qg4 {[%emt 0:00:00]}
Rxf2 {[%emt 0:00:00]} 47. Re8+ {[%emt 0:00:00]} 1-0